Cogmind - Beta 11 @@@ ROGUE MODE // 2022.04.07 @ 12:00:04 Player: RNGesus Result: Destroyed by as-81074 with Assembled Maul Performance ------------- Evolutions (1) 500 Regions Visited (4) 800 Robots Destroyed (72) 360 Value Destroyed (1539) 1539 Prototype IDs (3) 60 Alien Tech Used (0) 0 Bonus (28) 28 TOTAL SCORE: 3287 Bonus ------- High Alert Combat Kills 28 Cogmind --------- Core Integrity 0/400 Matter 200/300 Energy 100/100 System Corruption 8% Temperature Cool (0) Movement Rolling (200) Ox8 Location -9/Mines Parts ------- > --- POWER (1) -------- (None) > --- PROPULSION (3) --- Advanced Treads Wheel > --- UTILITY (3) ------ Huge Storage Unit Seismic Detector > --- WEAPON (2) ------- Heavy Assault Rifle > --- INVENTORY (25) --- Large Storage Unit Experimental Sensor Array Seismic Detector Transport Network Coupler Hacking Suite Sensor Drone Bay (20/20) Improved Medium Laser Assault Rifle Heavy Assault Rifle Heavy Assault Rifle Heavy Assault Rifle Mini Grenade Launcher Mini Grenade Launcher Datajack Plasma Cutter Peak State ------------ > --- POWER ------------ Light Nuclear Core > --- PROPULSION ------- Light Treads Light Treads Compact Wheel > --- UTILITY ---------- Large Storage Unit Experimental Sensor Array Medium Armor Plating > --- WEAPON ----------- Assault Rifle Heavy Assault Rifle > --- INVENTORY -------- Light Nuclear Core Light Treads Light Treads Compact Wheel Seismic Detector Transport Network Coupler Medium Armor Plating Medium Armor Plating Medium Armor Plating Hacking Suite Sensor Drone Bay Rocket Launcher Datajack [Rating: 23] Favorites ----------- Power Light Nuclear Core Engine Light Ion Engine Power Core Light Nuclear Core Propulsion Advanced Treads Treads Advanced Treads Wheel Compact Wheel Utility Medium Armor Plating Device Seismic Detector Storage Large Storage Unit Protection Medium Armor Plating Weapon Heavy Assault Rifle Energy Gun Improved Medium Laser Ballistic Gun Heavy Assault Rifle Launcher Rocket Launcher Build | -11 -10 -10 -9 -9 ------- Run | Scr Mat Min Mat Min Slots Evolved 2 | . . . 2 . Power . | . . . . . Propulsion 1 | . . . 1 . Utility 1 | . . . 1 . Weapon . | . . . . . Parts Attached 52 | 6 6 7 28 5 Power 8 | 1 1 1 4 1 Engine 4 | 1 1 . 1 1 Core 4 | . . 1 3 . Reactor . | . . . . . Propulsion 14 | 2 . 3 8 1 Treads 11 | 2 . 3 6 . Leg . | . . . . . Wheel 3 | . . . 2 1 Hover . | . . . . . Flight . | . . . . . Utility 16 | . 4 2 9 1 Device 4 | . . 1 3 . Storage 5 | . 3 . 2 . Processor . | . . . . . Hackware . | . . . . . Protection 7 | . 1 1 4 1 Artifact . | . . . . . Weapon 14 | 3 1 1 7 2 Energy Gun 1 | . . . 1 . Energy Cannon . | . . . . . Ballistic Gun 10 | 3 1 1 4 1 Ballistic Cannon . | . . . . . Launcher 3 | . . . 2 1 Special Weapon . | . . . . . Impact Weapon . | . . . . . Slashing Weapon . | . . . . . Piercing Weapon . | . . . . . Special Melee Weapon . | . . . . . Unidentified Prototypes 3 | . . 1 2 . Parts Lost 16 | . 1 . 9 6 Power 5 | . 1 . 3 1 Propulsion 5 | . . . 3 2 Utility 4 | . . . 2 2 Weapon 2 | . . . 1 1 Highest Loss Streak 3 | . 1 . 3 3 To Critical Strikes . | . . . . . Average Slot Usage (%) 95 | . 86 100 97 98 Engine 7 | . 13 7 1 10 Core 4 | . . 6 9 . Treads 24 | . 28 28 21 21 Wheel 6 | . . . 10 10 Device 6 | . . . 11 11 Storage 11 | . 12 14 11 11 Protection 9 | . 2 14 10 10 Energy Gun 1 | . . . 4 . Ballistic Gun 21 | . 28 28 15 21 Naked Turns . | . . . . . Heaviest Build 99 | 9 34 37 99 97 Greatest Support 40 | 40 40 40 16 16 Greatest Overweight (x) 9 | . . . 6 9 Average Overweight (x) 2 | . . . 3 6 Largest Inventory Capacity 25 | 5 15 15 25 25 Average Capacity 18 | 5 11 15 20 25 Most Carried 20 | 3 15 15 20 17 Average Carried 14 | 1 8 14 16 16 Final Capacity 25 | 5 15 15 25 25 Final Carried 17 | 3 15 15 17 15 Class Distribution -------------------- 89% | Mutant 10% | Scavenger-Mutant Dominant Class ---------------- Mutant | -10/Materials Mutant | -10/Mines Mutant | -9/Materials Mutant | -9/Mines Resources | -11 -10 -10 -9 -9 ----------- Run | Scr Mat Min Mat Min Matter Collected 1629 | 191 323 184 796 135 Remotely . | . . . . . Salvage Created 2411 | . 494 233 1518 166 Parts 160 | . 41 13 88 18 Haulers Intercepted 6 | . 2 . 4 . Recyclers Shooed . | . . . . . Parts Field Recycled . | . . . . . Retrieved Matter . | . . . . . Parts Self-Destructed . | . . . . . Prevented . | . . . . . Kills | -11 -10 -10 -9 -9 ------- Run | Scr Mat Min Mat Min Combat Hostiles Destroyed 57 | . 12 2 30 13 Guns 50 | . 12 2 27 9 AOE 7 | . . . 3 4 Classes Destroyed 13 | . 6 3 2 2 Worker 1 | . 1 . . . Builder 3 | . . 1 2 . Tunneler 2 | . . 1 . 1 Hauler 6 | . 2 . 4 . Recycler 3 | . . 1 2 . Mechanic 1 | . 1 . . . Operator 1 | . 1 . . . Watcher 2 | . . . 2 . Swarmer 23 | . 6 . 9 8 Grunt 22 | . 6 2 14 . Sentry 7 | . . . 7 . Demolisher 1 | . . . . 1 Assembled 4 | . . . . 4 Best Kill Streak 8 | . 4 2 5 8 Combat Bots Only 8 | . 4 2 3 8 Max Kills in Single Turn 3 | . 1 1 3 3 Gunslinging 1 | . . . 1 . Exploded 3 | . . . 3 3 Melee . | . . . . . Uniques/NPCs Destroyed . | . . . . . Combat | -11 -10 -10 -9 -9 -------- Run | Scr Mat Min Mat Min Damage Taken 2986 | . 517 83 1345 1041 Core 525 | . 85 10 142 288 Absorbed by Shields . | . . . . . Core Remaining (%) 81 | 100 . 62 . . Volleys Fired 203 | . 41 12 111 39 Largest 2 | . 2 2 2 2 Hottest 79 | . 40 43 79 46 Shots Fired 381 | . 82 24 208 67 Gun 377 | . 82 24 206 65 Cannon . | . . . . . Launcher 4 | . . . 2 2 Special . | . . . . . Kinetic 340 | . 82 24 169 65 Thermal 37 | . . . 37 . Explosive 4 | . . . 2 2 Electromagnetic . | . . . . . Robot Hit Streak 9 | . 9 6 9 8 Robot Miss Streak 7 | . 4 3 5 7 Penetration Max . | . . . . . Secondary Targets 6 | . 2 . 4 . Max Gunslinging Chain 1 | . 1 . 1 . Shots Hit Robots 227 | . 48 16 134 29 Core Hits 111 | . 29 8 56 18 Critical Kills 2 | . . . 1 1 Critical Parts Destroyed . | . . . . . Critical Strikes 5 | . . . 4 1 Burn 3 | . . . 3 . Destroy 2 | . . . 1 1 Melee Attacks . | . . . . . Impact . | . . . . . Slashing . | . . . . . Piercing . | . . . . . Sneak Attacks . | . . . . . Combat Hostiles . | . . . . . Follow-up Attacks . | . . . . . Damage Inflicted 3872 | . 659 220 2310 683 Guns 3451 | . 657 220 2121 453 Cannons . | . . . . . Explosions 419 | . . . 189 230 Melee . | . . . . . Ramming 2 | . 2 . . . Kinetic 3023 | . 657 220 1693 453 Thermal 428 | . . . 428 . Explosive 419 | . . . 189 230 Electromagnetic . | . . . . . Impact . | . . . . . Slashing . | . . . . . Piercing . | . . . . . Highest Corruption 8 | . . . . 8 Average Corruption 7 | . . . . 7 Corruption Purged . | . . . . . Corruption Blocked . | . . . . . Effects 3 | . . . . 3 Data Loss (minor) 2 | . . . . 2 Data Loss (major) 1 | . . . . 1 Overload Shots . | . . . . . Overflow Damage 33 | . . . 16 17 Projectiles . | . . . . . Explosions 33 | . . . 16 17 Melee . | . . . . . Knockbacks . | . . . . . Impact . | . . . . . Kinetic . | . . . . . Secondary . | . . . . . Self-Inflicted Damage . | . . . . . Shots . | . . . . . Rammed 1 | . 1 . . . Targets Rammed 1 | . 1 . . . Kicked . | . . . . . Crushed . | . . . . . Highest Temperature 222 | . 8 6 222 20 Average Temperature 42 | . 3 3 45 11 Received Heat Transfer 858 | . 180 48 561 69 Siege Activations . | . . . . . Robots Corrupted . | . . . . . Combat Hostiles . | . . . . . Parts Fried . | . . . . . Impact Corruptions . | . . . . . Robots Melted . | . . . . . Combat Hostiles . | . . . . . Parts Melted 2 | . . . 2 . Heat Transferred 1147 | . . . 1147 . Parts Sabotaged . | . . . . . Parts Stolen . | . . . . . Parts Stripped . | . . . . . Power Chain Reactions . | . . . . . Missiles Intercepted . | . . . . . Alert | -11 -10 -10 -9 -9 ------- Run | Scr Mat Min Mat Min Peak Influence 524 | . 217 75 524 313 Initial 204 | . . 52 29 204 Average 173 | . 107 59 265 170 Maximum Alert Level 2 | . 1 . 2 1 Low Security (%) 65 | 100 98 100 37 53 Level 1 26 | . 1 . 43 46 Level 2 8 | . . . 19 . Level 3 . | . . . . . Level 4 . | . . . . . Level 5 . | . . . . . High Security . | . . . . . Max Security . | . . . . . Squads Dispatched 7 | . 3 . 4 . Investigation 1 | . . . 1 . Extermination . | . . . . . Reinforcement 6 | . 3 . 3 . Assault . | . . . . . Garrison . | . . . . . Intercept . | . . . . . Searches Triggered . | . . . . . Construction Impeded . | . . . . . Haulers Reinforced . | . . . . . Active Scanning Responses . | . . . . . Cargo Convoy Interrupts . | . . . . . Stealth | -11 -10 -10 -9 -9 --------- Run | Scr Mat Min Mat Min Distress Signals 4 | . 2 . 2 . Communications Jammed . | . . . . . Distress Signals . | . . . . . Times Spotted 110 | . 29 3 52 26 Peak Tracking Total 10 | . 5 2 6 10 Tactical Retreats 4 | . 1 . 1 2 Traps | -11 -10 -10 -9 -9 ------- Run | Scr Mat Min Mat Min Traps Triggered 5 | . 3 . 2 . Indirectly . | . . . . . Trap Hack Attempts . | . . . . . Triggered . | . . . . . Disarmed . | . . . . . Reprogrammed . | . . . . . Reused . | . . . . . Traps Extracted . | . . . . . Installed . | . . . . . Triggered . | . . . . . Machines | -11 -10 -10 -9 -9 ---------- Run | Scr Mat Min Mat Min Machines Disabled 2 | . 1 . . 1 Max in Single Turn 1 | . 1 . . 1 Machines Sabotaged . | . . . . . Garrisons Compromised . | . . . . . Overloaded Fab Kills . | . . . . . Hacking | -11 -10 -10 -9 -9 --------- Run | Scr Mat Min Mat Min Machines Accessed 4 | . 1 1 2 . Terminals 2 | . 1 . 1 . Fabricators . | . . . . . Repair Stations . | . . . . . Recycling Units 1 | . . . 1 . Scanalyzers . | . . . . . Garrison Access . | . . . . . Total Hacks 7 | . 3 1 3 . Successful 4 | . 1 1 2 . Failed 3 | . 2 . 1 . Catastrophic . | . . . . . Database Lockouts . | . . . . . Manual 5 | . 2 . 3 . Terminals 4 | . 3 . 1 . Fabricators . | . . . . . Repair Stations . | . . . . . Recycling Units 2 | . . . 2 . Scanalyzers . | . . . . . Garrison Access . | . . . . . Terminal Hacks 3 | . 1 1 1 . Record 1 | . 1 . . . Open Door 1 | . . 1 . . Hauler Manifests 1 | . . . 1 . Fabricator Hacks . | . . . . . Repair Station Hacks . | . . . . . Recycling Unit Hacks . | . . . . . Scanalyzer . | . . . . . Garrison Access Hacks . | . . . . . Unauthorized Hacks 1 | . . . 1 . Terminals . | . . . . . Fabricators . | . . . . . Repair Stations . | . . . . . Recycling Units 1 | . . . 1 . Tunnel 1 | . . . 1 . Scanalyzers . | . . . . . Garrison Access . | . . . . . Data Cores Recovered . | . . . . . Used . | . . . . . Hacking Detections 2 | . 1 . 1 . Full Trace Events 1 | . 1 . . . Feedback Events . | . . . . . Feedback Blocked . | . . . . . Robot Schematics Acquired . | . . . . . Robots Built . | . . . . . Authchips . | . . . . . Time . | . . . . . Total Robot Build Rating . | . . . . . Part Schematics Acquired . | . . . . . Parts Built . | . . . . . Authchips . | . . . . . Time . | . . . . . Total Part Build Rating . | . . . . . Parts Repaired . | . . . . . Time . | . . . . . Parts Recycled . | . . . . . Recycled Matter . | . . . . . Retrieved Matter . | . . . . . Retrieved Components . | . . . . . Parts Scanalyzed . | . . . . . Part Schematics Acquired . | . . . . . Parts Damaged . | . . . . . Bothacking | -11 -10 -10 -9 -9 ------------ Run | Scr Mat Min Mat Min Used RIF Installer . | . . . . . Robots Hacked . | . . . . . Non-combat . | . . . . . Combat . | . . . . . Robot Hacks Applied . | . . . . . Relay Couplers Released . | . . . . . Fabnet Peak Effective % . | . . . . . Robots Rewired . | . . . . . Allies Hacked . | . . . . . Hacks Repelled . | . . . . . Allies | -11 -10 -10 -9 -9 -------- Run | Scr Mat Min Mat Min Total Allies 4 | . . 1 . 3 Largest Group 3 | . . 1 . 3 Highest-Rated Group 40 | . . 31 . 40 Highest-Rated Ally 31 | . . 31 . 16 Total Orders . | . . . . . Ally Attacks 15 | . . . . 15 Total Damage 159 | . . . . 159 Kills 1 | . . . . 1 Allies Corrupted . | . . . . . Allies Melted . | . . . . . Intel | -11 -10 -10 -9 -9 ------- Run | Scr Mat Min Mat Min Robot Analysis Total . | . . . . . Derelict Logs Recovered 3 | . . 1 . 2 Drone Launches . | . . . . . Drone Recoveries . | . . . . . Exploration | -11 -10 -10 -9 -9 ------------- Run | Scr Mat Min Mat Min Turns Passed 4785 | 65 1107 799 1950 864 Spaces Moved 2499 | 36 599 464 1009 391 Core 2 | 2 . . . . Treads 1097 | 34 599 464 . . Legs . | . . . . . Wheels 1400 | . . . 1009 391 Hover . | . . . . . Flight . | . . . . . Fastest Speed 50 | 50 160 160 130 190 Average Speed 162 | 153 160 160 153 191 Slowest Speed 215 | 160 160 160 190 215 Overloaded Moves . | . . . . . Propulsion Burnouts . | . . . . . Robots Hopped . | . . . . . Cave-ins Triggered . | . . . . . Exploration Rate (%) 73 | 4 96 82 96 88 Regions Visited 4 Branch Regions 2 Pre-discovered Areas 4 | . . 1 1 2 Known Exits Taken . | . . . . . Unknown Exits Taken 4 | 1 1 1 1 . Scrap Searched 2 | . . 1 . 1 Spaces Dug 9 | . . . 9 . Terrain Destroyed 31 | . . . 16 15 Melee . | . . . . . Projectile . | . . . . . AOE 31 | . . . 16 15 Terrain Rammed . | . . . . . Walls Destroyed . | . . . . . Machines Disabled . | . . . . . Actions | -11 -10 -10 -9 -9 --------- Run | Scr Mat Min Mat Min Total 2854 | 43 665 500 1207 439 Wait 44 | . 3 . 38 3 Move 2495 | 35 598 463 1008 391 Hop . | . . . . . Pick Up 34 | 2 13 7 12 . Fast Attach 15 | 5 4 1 5 . Attach 15 | . 2 . 11 2 Detach 4 | . 2 . 2 . Swap 22 | 1 . 6 12 3 Drop 21 | . 1 11 8 1 Fire 203 | . 41 12 111 39 Melee . | . . . . . Ram . | . . . . . Kick . | . . . . . Crush 1 | . 1 . . . Escape Stasis . | . . . . . Rewire . | . . . . . Trap . | . . . . . Miscellaneous . | . . . . . Route ------- -11/Scrapyard -10/Materials (discovered 4 exits: *Mat x3 / *Min) -10/Mines -9/Materials (discovered 5 exits: [*Mat x3] / [*Min x2]) -9/Mines (discovered 2 exits: [*Mat x2]) History --------- Turn | Location | Event 33 | -11/Scrapyard | Discovered new exit (range 16) 66 | -11/Scrapyard | Entered Materials 246 | -10/Materials | Discovered new exit (range 16) 303 | -10/Materials | Build established: Mutant 573 | -10/Materials | Discovered new exit (range 8) 629 | -10/Materials | Discovered new exit (range 9) 816 | -10/Materials | Discovered new exit (range 16) 1173 | -10/Materials | Entered Mines 1192 | -10/Mines | Received a Mining Laser from a helpful Derelict 1251 | -10/Mines | Found the Drone Emporium 1261 | -10/Mines | Found Prototype Device 1378 | -10/Mines | Learned location of Recycling (-7) 1471 | -10/Mines | Deemed a non-threat by the Exiles lab entrance 1526 | -10/Mines | Received a Rocket Launcher from a helpful Derelict 1633 | -10/Mines | Joined a pair of Derelicts in attacking an 0b10 outpost 1865 | -10/Mines | Identified Sensor Drone Bay 1927 | -10/Mines | Found a damaged Exp. Sensor Array with a note attached 1936 | -10/Mines | Found Prototype Device 1951 | -10/Mines | Discovered new exit (range 14) 1972 | -10/Mines | Entered Materials 1972 | -9/Materials | Evolved 2 slots: Propulsion x1, Utility x1 1973 | -9/Materials | Identified Exp. Sensor Array 1995 | -9/Materials | Build established: Scavenger-Mutant 2262 | -9/Materials | Discovered new exit (range 16) 2409 | -9/Materials | Build established: Mutant 2564 | -9/Materials | Discovered new exit (range 12) 2907 | -9/Materials | Discovered new exit (range 7) 3165 | -9/Materials | Lost 3 parts (1p1n1u) 3268 | -9/Materials | Discovered new exit (range 12) 3580 | -9/Materials | Discovered new exit (range 10) 3922 | -9/Materials | Entered Mines 3923 | -9/Mines | Learned location of Storage (-7) 3957 | -9/Mines | Discovered new exit (range 7) 3976 | -9/Mines | Assisted by bots powering up and referring to "LRC-V3" 4409 | -9/Mines | Discovered new exit (range 9) 4632 | -9/Mines | Assembled infested the area 4637 | -9/Mines | Assisted by a Guerilla fighting off Assembled 4648 | -9/Mines | Learned 8 Materials zone layouts 4697 | -9/Mines | Core integrity fell below 50% 4744 | -9/Mines | Destroyed 8 combat bots 4750 | -9/Mines | Lost 3 parts (2n1u) 4769 | -9/Mines | Core integrity fell below 20% 4786 | -9/Mines | Destroyed by as-81074 with Assembled Maul Last Messages --------------- 04769_ D-53 Grenadier destroyed. 04769_ U-05 Engineer lays Concrete. 04769_ K-01 Serf collects debris. 04770_ System corrupted: Substantial component data lost. 04770_ D-53 Grenadier destroyed. 04770_ U-05 Engineer lays Concrete. 04772_ K-01 Serf collects debris. 04773_ The unstable cave ceiling collapses. 04774_ U-05 Engineer builds a Wall. 04775_ K-01 Serf collects debris. 04776_ The unstable cave ceiling collapses. 04778_ U-05 Engineer lays Concrete. 04779_ K-01 Serf collects debris. 04781_ The unstable cave ceiling collapses. 04781_ U-05 Engineer builds a Wall. 04782_ Knocked back. 04783_ K-01 Serf collects debris. 04785_ The unstable cave ceiling collapses. 04785_ U-05 Engineer lays Concrete. 04786_ The unstable cave ceiling collapses. Map ----- +----------------------------------------------------+ | ### ##?????????????# #????## #?? | | ### ##??####???????## #???## ##?? | | ## #?# [#??## ##?###### #### ##??? | | #?# ##?#[%#### ### ####???? | | ???###??#] ##??????? | | ????????######## ##### #???????? | | ???????????????## ####???## ##???????? | | ????????????????## ##?????## ##????????? | | ?????????????????## #?????## ##?????????? | | ??????????????????## #?????# #??????????? | | ??????????????????## #?????# #??????????? | | ????????????????### ##?????## #??????????? | | ????????????????# #???????## ##??????????? | | ????????????????# ######???###???????????? | | ????????????????## ##????????????????? | | ?????????????????### ##???????????????? | | ???????????????????### #???????????????? | | ?????????????????????## "% #???????????????? | | ??????????????????????## ##??????????????? | | ?????????????????????### #??????????????? | | ??????????????????#### ## u #??????????????? | | ??????????????????# # # ##??? ##????????? | | ??????????????????## # k ## #????????? | | ?????????????????## # = #????????? | | ?????????????????# # #????????? | | ????????????????## a@ #???????? | | ????????????????# # # #???????? | | ????????????????## # # ##???????? | | ??????????# # #####????????? | | ??????????# #######?????????? | | ?????????# # ##????????? | | ?????????? ## ### ###### # # ##???????? | | ?????????? ??##??# ##### * [ #???????? | | ???????????? ???????# = =[ #????????? | | ???????????? ????????####### = #????????? | | ?????????????"???????????????#* #???????? | | ?????????????????????????????# ##???????? | | ?????????????????????????????# #????????? | | ?????????????????????????????# #????????? | | ??????????????????????????????#########????????? | | ???????????????????????????????????????????????? | | | | | | | | | | | | | | | | | | | +----------------------------------------------------+ Best States ------------- Heat Dissipation 28 Energy Generation 14 Energy Capacity 250 Matter Stores 300 Matter Capacity 300 Sight Range 16 Terrain Scan Density 10 Armor Coverage 225 Evasion (%) 40 Recoil Reduction 2 Item Schematics ----------------- None Robot Schematics ------------------ None Fabricated ------------ Nothing Alien Tech Used ----------------- None Achievements -------------- None Challenges ------------ None Game ------ Seed CoreRiotHumpback Manual? 0 Play Time 00:22:29 Cumulative 305.8 hours Start 2022.04.07 @ 11:09:34 End 2022.04.07 @ 12:00:04 Sessions 1 Manual Loads 0 Difficulty Rogue Special Mode None Game No. 455 Rogue 455 Adventurer 0 Explorer 0 Win Type - Total 5 Types 3/0/1/1/0/0/0/0/0 Lore% 79 Gallery% 81 Achievement% 64 Wizard Run 0 Options --------- ASCII 0 Keyboard 1 Movement Numpad Keybinds 0 Fullscreen 2 Font 24/Smallcaps Map View 76x50 Tactical HUD 1 Map Filters NONE Filters NONE Steam 1 RUN: 9977c39e-232b-4f77-8c23-d03f8bb24e32